bitfinex-derivatives/quotes_ETHF0:USTF0_20251216
["timestamp","ask_amount","ask_price","bid_price","bid_amount"]
[1765889795561,1.5178,2954.0,2953.9,2.29308792]
[1765889795760,4.1978,2954.0,2953.9,2.29308792]
[1765889795959,4.1978,2954.0,2953.9,3.03228792]
[1765889796159,4.1978,2954.0,2953.9,1.52]
[1765889796356,1.5178,2953.8,2953.7,1.51228792]
[1765889796560,4.0878,2953.8,2953.7,2.29308792]
[1765889797260,4.0878,2953.8,2953.7,3.03228792]
[1765889798666,2.46,2953.8,2953.7,3.03228792]
[1765889799356,3.1989,2953.8,2953.7,3.03228792]
[1765889799957,0.8789,2953.8,2953.7,3.03228792]
[1765889800160,3.0089,2953.8,2953.7,3.03228792]
[1765889800364,3.7878,2953.8,2953.7,3.03228792]
[1765889800662,0.4295,2954.5,2953.7,3.20159792]
[1765889800862,1.5178,2954.2,2954.1,3.03228792]
[1765889801060,4.0978,2954.2,2954.1,3.03228792]
[1765889801262,4.0978,2954.2,2954.1,2.29308792]
[1765889801657,1.5178,2954.1,2954.0,1.2071]
[1765889801863,3.7678,2954.1,2954.0,1.2071]
[1765889802166,3.7678,2954.1,2954.0,1.9463]
[1765889802666,2.9889,2954.1,2954.0,1.9463]
[1765889803068,3.7678,2954.1,2954.0,1.9463]
[1765889803664,2.9889,2954.1,2954.0,1.9463]
[1765889804164,2.25,2954.1,2954.0,1.9463]
[1765889805264,2.9889,2954.1,2954.0,42.7463]
[1765889806669,3.7678,2954.1,2954.0,42.7463]
[1765889807170,2.9889,2954.1,2954.0,42.7463]
[1765889807567,3.7678,2954.1,2954.0,40.8]
[1765889807768,1.5178,2953.5,2953.4,6.54963378]
[1765889807967,3.7578,2953.5,2953.4,1.52906874]
[1765889808165,2.5355,2953.5,2952.6,3.20165792]
[1765889808370,3.7578,2953.5,2953.4,1.52]
[1765889808866,1.5178,2953.1,2953.0,1.9463]
[1765889809073,3.8778,2953.1,2953.0,1.94871308]
[1765889811072,3.8778,2953.1,2953.0,1.20951308]
[1765889812577,3.8778,2953.1,2953.0,1.94871308]
[1765889813275,3.8778,2953.1,2953.0,0.00241308]
[1765889813469,3.8778,2953.1,2953.0,0.78321308]
[1765889813979,3.8778,2953.1,2953.0,0.00241308]
[1765889815475,3.8778,2953.1,2953.0,0.78321308]
[1765889815877,3.8778,2953.1,2953.0,0.00241308]
[1765889816082,3.8778,2953.1,2953.0,1.94871308]
[1765889816576,1.5178,2952.4,2952.3,3.20167792]
[1765889817272,0.7389,2952.4,2952.3,3.20167792]
[1765889817475,0.74259839,2952.4,2952.3,3.20602981]
[1765889818683,3.98149839,2952.4,2952.3,1.52435189]
[1765889819969,0.00369839,2952.4,2952.3,1.52435189]
[1765889820770,1.52149839,2952.4,2952.3,0.78515189]
[1765889820970,1.52149839,2952.4,2952.3,2.29743981]
[1765889820971,3.69149839,2952.4,2952.3,2.29743981]
[1765889821270,3.69149839,2952.4,2952.3,3.03663981]
[1765889822679,2.17369839,2952.4,2952.3,3.03663981]
[1765889822986,0.00369839,2952.4,2952.3,3.03663981]
[1765889823186,0.00369839,2952.4,2952.3,3.20602981]
[1765889829693,3.79129839,2952.4,2952.3,0.00435189]
[1765889830388,3.79129839,2952.4,2952.3,1.51663981]
[1765889830587,3.79129839,2952.4,2952.3,0.00435189]
[1765889832302,3.79129839,2952.4,2952.3,0.78425189]
[1765889832993,3.79129839,2952.4,2952.3,1.53625189]
[1765889833191,0.00369839,2952.4,2952.3,1.53625189]
[1765889833695,0.2865,2953.5,2952.5,0.4298]
[1765889833902,4.19268001,2953.3,2953.2,3.04418792]
[1765889834193,4.19268001,2953.3,2953.2,2.29218792]
[1765889834396,4.19268001,2953.3,2953.2,1.51228792]
[1765889834696,4.19514717,2953.3,2953.2,1.51228792]
[1765889836001,1.4876,2953.1,2953.0,1.51228792]
[1765889836199,1.4876,2952.8,2952.7,0.16937]
[1765889836493,3.8876,2952.8,2952.7,1.51228792]
[1765889837098,2.4,2952.8,2952.3,1.53625189]
[1765889837285,1.4876,2952.6,2952.5,1.51228792]
[1765889837486,1.4876,2952.4,2952.3,0.00435189]
[1765889837690,3.8676,2952.4,2952.3,0.00435189]
[1765889846701,3.8676,2952.4,2952.3,1.53625189]
[1765889847200,3.8676,2952.4,2952.3,0.78425189]
[1765889847897,3.8676,2952.4,2952.3,0.00435189]
[1765889849296,5.38237748,2952.4,2952.3,0.00435189]
[1765889850903,3.8676,2952.4,2952.3,0.00435189]
[1765889851805,3.8676,2952.4,2952.3,0.78425189]
[1765889852105,3.8676,2952.4,2952.3,0.00435189]
[1765889852300,3.8676,2952.4,2952.3,1.53625189]
[1765889852507,3.7876,2952.4,2952.3,1.53625189]
[1765889852704,3.7876,2952.4,2952.3,0.78425189]
[1765889853000,3.7876,2952.4,2952.3,0.00435189]
[1765889857309,1.5299,2951.5,2951.4,4.97515557]
[1765889857508,4.1399,2951.5,2951.4,1.4942]
[1765889857706,4.1399,2951.5,2951.4,1.76371259]
[1765889857906,3.3667,2951.5,2951.4,3.0087452]
[1765889858410,3.3667,2951.5,2951.4,3.01196332]
[1765889859212,4.1399,2951.5,2951.4,3.01196332]
[1765889859711,3.3667,2951.5,2951.4,3.01196332]
[1765889860112,0.00508001,2951.7,2951.6,1.4942]
[1765889860313,3.32178001,2951.7,2951.6,1.4942]
[1765889860615,1.5299,2951.6,2951.5,1.1723]
[1765889860815,4.0099,2951.6,2951.5,1.9334]
[1765889861508,3.2367,2951.6,2951.5,1.9334]
[1765889863116,0.66,2951.6,2951.5,1.9334]
[1765889863310,0.00508001,2951.7,2951.6,1.4942]
[1765889863512,0.00508001,2951.7,2951.6,1.66363]
[1765889864511,0.76178001,2951.7,2951.6,1.66363]
[1765889865015,0.00508001,2951.7,2951.6,3.1781752]
[1765889865722,4.14498001,2951.7,2951.6,3.1781752]
[1765889866713,2.61508001,2951.7,2951.6,3.1781752]
[1765889867017,0.00508001,2951.7,2951.6,3.1781752]
[1765889868416,3.90498001,2951.7,2951.6,1.66363]
[1765889869121,3.13178001,2951.7,2951.6,1.66363]
[1765889870215,3.90498001,2951.7,2951.6,1.66363]
[1765889870417,3.13178001,2951.7,2951.6,1.66363]
[1765889873321,3.90498001,2951.7,2951.6,1.4942]
[1765889874318,1.5299,2951.5,2951.4,17.99686332]
[1765889874520,1.53498001,2951.7,2951.6,1.4942]
[1765889874721,1.5299,2951.6,2951.5,1.1723]
[1765889874922,4.0199,2951.6,2951.5,1.1723]
[1765889875109,4.0199,2951.6,2951.5,1.9334]
[1765889876922,4.0199,2951.6,2951.5,1.1723]
[1765889877124,1.5299,2951.5,2951.4,0.00321812]
[1765889877322,4.3164,2951.5,2951.4,0.00321812]
[1765889880231,4.0299,2951.5,2951.4,0.73631812]
[1765889880937,4.0299,2951.5,2951.4,0.00321812]
[1765889881436,4.3164,2951.5,2951.4,0.00321812]
[1765889882139,4.0299,2951.5,2951.4,0.00321812]
[1765889882328,2.5,2951.5,2951.4,3.01196332]
[1765889882529,3.2567,2951.5,2951.4,3.01196332]
[1765889882837,4.0299,2951.5,2951.4,1.49741812]
[1765889883224,1.7699,2951.5,2951.4,1.49741812]
[1765889884236,1.5299,2951.5,2951.4,1.49741812]
[1765889884435,4.0099,2951.5,2951.4,1.49741812]
[1765889885027,2.0299,2951.5,2951.4,1.49741812]
[1765889885540,4.1299,2951.5,2951.4,1.49741812]
[1765889886033,4.1299,2951.5,2951.4,0.00321812]
[1765889886240,4.4161,2951.5,2951.4,0.00321812]
[1765889888539,2.6,2951.5,2951.4,1.45331812]
[1765889888734,0.00508001,2951.7,2951.6,1.61953]
[1765889888935,4.15978001,2951.7,2951.6,0.715]
[1765889889136,1.5647,2951.6,2951.5,1.1622]
[1765889889435,4.1447,2951.6,2951.5,1.8973]
[1765889890130,4.1447,2951.6,2951.5,1.1622]
[1765889890336,1.5647,2951.5,2951.4,0.71821812]
[1765889890837,3.9047,2951.5,2951.4,0.00321812]
[1765889891428,3.9047,2951.5,2951.4,0.71821812]
[1765889894443,3.9047,2951.5,2951.4,1.45331812]
[1765889895941,3.9047,2951.5,2951.4,0.00321812]
[1765889896242,3.9047,2951.5,2951.4,1.45331812]
[1765889898541,3.1172,2951.5,2951.4,1.45331812]
[1765889899250,3.9047,2951.5,2951.4,1.45331812]
[1765889900448,4.1909,2951.5,2951.4,0.00321812]
[1765889913349,4.1909,2951.5,2951.4,1.51860051]
[1765889913551,2.34,2951.5,2951.4,2.99150051]
[1765889913743,1.48428001,2951.7,2951.6,1.4729]
[1765889913942,3.82428001,2951.7,2951.6,2.98828239]
[1765889914156,1.4792,2951.5,2951.4,0.00321812]
[1765889914344,3.9292,2951.5,2951.4,1.51860051]
[1765889914856,3.9292,2951.5,2951.4,2.99150051]
[1765889916554,3.9292,2951.5,2951.4,1.47611812]
[1765889916753,3.9292,2951.5,2951.4,2.99150051]
[1765889917255,3.1787,2951.5,2951.4,2.99150051]
[1765889917452,2.45,2951.5,2951.4,2.99150051]
[1765889917761,3.1787,2951.5,2951.4,2.99150051]
[1765889917959,3.9292,2951.5,2951.4,1.51860051]
[1765889918446,3.9292,2951.5,2951.4,2.27830051]
[1765889919055,3.9292,2951.5,2951.4,1.51860051]
[1765889919255,3.9292,2951.5,2951.4,1.51829556]
[1765889919763,3.9292,2951.5,2951.4,2.27799556]
[1765889919967,3.9292,2951.5,2951.4,2.99119556]
[1765889920259,3.9292,2951.5,2951.4,2.27799556]
[1765889920662,3.9292,2951.5,2951.4,0.76291812]
[1765889920858,3.9292,2951.5,2951.4,0.00321812]
[1765889921056,4.2164,2951.5,2951.4,0.00321812]
[1765889930568,3.9292,2951.5,2951.4,0.00321812]
[1765889932168,4.2164,2951.5,2951.4,0.00321812]
[1765889937575,5.73147744,2951.5,2951.4,0.00321812]
[1765889937877,4.2164,2951.5,2951.4,0.00321812]
[1765889945682,0.77588001,2951.7,2951.6,1.5305]
[1765889945871,3.82798001,2951.7,2951.6,3.04557744]
[1765889951684,1.4829,2951.5,2951.4,2.27579556]
[1765889951985,3.9929,2951.5,2951.4,2.27579556]
[1765889952184,3.9929,2951.5,2951.4,3.04879556]
[1765889952577,4.2801,2951.5,2951.4,0.00321812]
[1765889953582,3.9929,2951.5,2951.4,0.76071812]
[1765889954282,3.9929,2951.5,2951.4,0.00321812]
[1765889954580,4.2801,2951.5,2951.4,0.00321812]
[1765889958081,3.9929,2951.5,2951.4,1.53371812]
[1765889958379,3.2808,2951.5,2951.4,1.53371812]
[1765889958781,3.9929,2951.5,2951.4,1.53371812]
[1765889964590,3.2808,2951.5,2951.4,1.53371812]
[1765889964791,1.4808,2951.5,2951.4,1.53371812]
[1765889965383,3.6729,2951.5,2951.4,3.04879556]
[1765889965688,2.19,2951.5,2951.4,3.04879556]
[1765889965991,0.00508001,2951.7,2951.6,1.5305]
[1765889966180,2.52508001,2951.7,2951.6,3.04557744]
[1765889966386,3.29588001,2951.7,2951.6,3.04557744]
[1765889967790,4.00798001,2951.7,2951.6,3.04557744]
[1765889971396,4.00798001,2951.7,2951.6,3.04528166]
[1765889972292,2.52508001,2951.7,2951.6,3.04528166]
[1765889972493,2.20375114,2951.7,2951.6,3.21471166]
[1765889973502,0.00508001,2951.9,2951.8,1.4723]
[1765889973796,2.26508001,2951.9,2951.8,1.4723]
[1765889980699,3.00438001,2951.9,2951.8,1.4723]
[1765889981807,2.26508001,2951.9,2951.8,1.4723]
[1765889982304,2.26508001,2951.9,2951.8,1.64172]
[1765889983710,2.26508001,2951.9,2951.8,3.15650166]
[1765889983711,3.70878001,2951.9,2951.8,3.15650166]
[1765889986504,3.70878001,2951.9,2951.8,3.15613795]
[1765889988307,2.26508001,2951.9,2951.8,3.15613795]
[1765889988711,2.97808001,2951.9,2951.8,3.15613795]
[1765889989603,3.70878001,2951.9,2951.8,1.64172]
[1765889989810,3.70878001,2951.9,2951.8,3.21683795]
[1765889990607,0.00508001,2951.9,2951.8,3.21683795]
[1765889991008,3.73878001,2951.9,2951.8,3.21683795]
[1765889992706,3.73878001,2951.9,2951.8,2.44133795]
[1765889993109,3.73878001,2951.9,2951.8,3.21683795]
[1765889994914,3.73878001,2951.9,2951.8,2.44133795]
[1765889995307,3.73878001,2951.9,2951.8,1.68383795]
[1765889997107,2.29508001,2951.9,2951.5,6.22411119]
[1765889997315,1.4437,2951.5,2951.4,12.60501136]
[1765889997610,3.9809,2951.5,2951.4,4.26031136]
[1765889997808,3.9809,2951.5,2951.4,0.00321812]
[1765890003210,3.6937,2951.5,2951.4,0.74591812]
[1765890003419,2.963,2951.5,2951.4,1.52141812]
[1765890003618,3.7353,2951.5,2951.4,0.74591812]
[1765890003916,3.7353,2951.5,2951.4,0.00321812]
[1765890005321,4.0232,2951.5,2951.4,0.00321812]
[1765890005821,3.7353,2951.5,2951.4,3.02403607]
[1765890006419,3.7353,2951.5,2951.4,2.27313607]
[1765890006618,3.7353,2951.5,2951.4,0.00321812]
[1765890006911,1.5269,2950.8,2950.7,4.25709324]
[1765890007118,2.71,2950.8,2950.0,5.83233424]
[1765890007316,0.7546,2950.1,2950.0,6.10597038]
[1765890007509,2.7446,2950.1,2950.0,2.21923614]
[1765890007706,1.99,2950.1,2950.0,2.21923614]
[1765890007905,2.74876967,2950.1,2950.0,2.2217477]
[1765890008519,2.74876967,2950.1,2950.0,3.73616565]
[1765890008919,3.52106967,2950.1,2950.0,3.73616565]
[1765890009115,0.00508001,2950.3,2950.2,1.5064]
[1765890009414,3.21968001,2950.3,2950.2,1.5064]
[1765890009917,3.99198001,2950.3,2950.2,1.5064]
[1765890010119,3.99580644,2950.3,2950.2,1.5064]
[1765890011114,3.22350644,2950.3,2950.2,1.5064]
[1765890011314,3.99580644,2950.3,2950.2,1.5064]
[1765890012822,3.99580644,2950.3,2950.2,0.7555]
[1765890013320,3.99580644,2950.3,2950.2,1.5064]
[1765890013816,1.5269,2950.1,2950.0,3.15478565]
[1765890014016,1.5269,2950.1,2950.0,1.68644951]
[1765890014222,3.9469,2950.1,2950.0,2.11273156]
[1765890014422,3.9469,2950.1,2950.0,0.00251156]
[1765890015922,1.5269,2949.6,2949.5,8.469]
[1765890016225,3.7469,2949.6,2949.5,8.469]
[1765890016918,3.7469,2949.6,2949.5,8.47295853]
[1765890017718,3.7469,2949.6,2949.5,0.00395853]
[1765890018117,3.7469,2949.6,2949.5,1.94465853]
[1765890018320,2.9746,2949.6,2949.5,3.45907648]
[1765890018520,3.7469,2949.6,2949.5,3.45907648]
[1765890018719,3.7469,2949.6,2949.5,2.27387648]
[1765890018923,3.7469,2949.6,2949.5,1.51837648]
[1765890020523,3.7469,2949.6,2949.5,0.00395853]
[1765890024229,3.7469,2949.6,2949.5,1.94465853]
[1765890025028,0.7546,2949.6,2949.5,1.94465853]
[1765890025219,3.1346,2949.6,2949.5,1.94465853]
[1765890025521,3.9069,2949.6,2949.5,0.00395853]
[1765890033425,3.9069,2949.6,2949.5,1.52113217]
[1765890034327,3.9069,2949.6,2949.5,0.00395853]
[1765890035122,3.9069,2949.6,2949.5,1.52113217]
[1765890035324,3.9069,2949.6,2949.5,2.25923217]
[1765890035527,3.9069,2949.6,2949.5,0.00395853]
[1765890035729,3.9069,2949.6,2949.5,1.52113217]
[1765890037032,3.9069,2949.6,2949.5,2.25923217]
[1765890037426,3.9069,2949.6,2949.5,1.52113217]
[1765890038838,3.9069,2949.6,2949.5,0.00395853]
[1765890041535,2.38,2949.6,2949.5,1.94025853]
[1765890041739,1.25889141,2950.3,2949.5,2.10980853]
[1765890042044,0.719,2949.6,2949.5,2.10980853]
[1765890042534,3.409,2949.6,2949.5,2.10980853]
[1765890042737,4.1465,2949.6,2949.5,1.94025853]
[1765890042936,4.1465,2949.6,2949.5,0.00395853]
[1765890043740,4.1465,2949.6,2949.5,1.94025853]
[1765890044135,4.1465,2949.6,2949.5,1.18575853]
[1765890044342,4.1465,2949.6,2949.5,1.52113217]
[1765890044741,4.1465,2949.6,2949.5,0.00395853]
[1765890045938,10.1465,2949.6,2949.5,0.00395853]
[1765890046139,0.719,2948.6,2948.5,1.9269]
[1765890046340,1.4565,2948.6,2948.5,1.9269]
[1765890046545,3.7965,2948.6,2948.5,1.9269]
[1765890046742,3.7965,2948.6,2948.5,1.1724]
[1765890046947,0.719,2948.1,2948.0,2.2049]
[1765890047140,3.43242652,2948.1,2948.0,3.72478495]
[1765890047945,4.16992652,2948.1,2948.0,3.72478495]
[1765890048150,4.16992652,2948.1,2948.0,2.20761131]
[1765890048344,4.16992652,2948.1,2948.0,3.72478495]
[1765890048545,0.48342652,2948.1,2948.0,3.72478495]
[1765890048752,0.00342652,2948.1,2948.0,3.72478495]
[1765890049050,0.00508001,2948.3,2948.2,1.4926]
[1765890049346,2.43508001,2948.3,2948.2,3.00977364]
[1765890049847,2.43913239,2948.3,2948.2,3.00977364]
[1765890050448,3.15813239,2948.3,2948.2,3.00977364]
[1765890050942,3.89563239,2948.3,2948.2,3.00977364]
[1765890051142,1.4565,2948.1,2948.0,1.49531131]
[1765890051351,2.64,2948.1,2948.0,1.93901131]
[1765890052452,2.64,2948.1,2948.0,3.45618495]
[1765890053443,2.64,2948.1,2948.0,3.45723527]
[1765890054353,0.72813239,2948.3,2948.2,1.4926]
[1765890054554,3.25813239,2948.3,2948.2,3.01082396]
[1765890054755,0.00913239,2948.3,2948.2,3.01082396]
[1765890054950,2.56913239,2948.3,2948.2,3.01082396]
[1765890055147,3.28813239,2948.3,2948.2,3.01082396]
[1765890056048,2.56913239,2948.3,2948.2,4.52904792]
[1765890056253,2.56913239,2948.3,2948.2,3.01082396]
[1765890056649,0.00913239,2948.3,2948.2,4.52904792]
[1765890056848,0.00913239,2948.3,2948.2,3.01082396]
[1765890057248,0.72813239,2948.3,2948.2,3.01082396]
[1765890057453,3.69563239,2948.3,2948.2,1.51822396]
[1765890057655,1.4565,2948.1,2948.0,2.25903527]
[1765890057954,3.9365,2948.1,2948.0,2.25903527]
[1765890058659,3.9365,2948.1,2948.0,1.52093527]
[1765890058853,3.9365,2948.1,2948.0,2.25903527]
[1765890059257,3.9365,2948.1,2948.0,3.01353527]
[1765890059448,3.9365,2948.1,2948.0,2.25903527]
[1765890059859,3.9365,2948.1,2948.0,1.52093527]
[1765890060154,3.9365,2948.1,2948.0,3.01353527]
[1765890060359,1.46563239,2948.3,2948.2,1.4926]
[1765890060561,4.15563239,2948.3,2948.2,0.7381]
[1765890060752,4.15563239,2948.3,2948.2,2.25632396]
[1765890060949,4.15563239,2948.3,2948.2,1.51822396]
[1765890062059,1.4565,2948.1,2948.0,1.49531131]
[1765890062261,3.8265,2948.1,2948.0,3.01353527]
[1765890062468,3.049,2948.1,2948.0,3.45723527]
[1765890063057,0.00913239,2948.3,2948.2,1.4926]
[1765890063267,2.28813239,2948.3,2948.2,3.01082396]
[1765890063455,3.02563239,2948.3,2948.2,1.51822396]
[1765890067260,1.56913239,2948.3,2948.2,3.03322396]
[1765890067464,2.18913239,2948.3,2948.2,3.03322396]
[1765890067658,0.00913239,2948.3,2948.2,4.55144792]
[1765890068362,3.04400012,2949.5,2949.4,1.515]
[1765890068363,2.97327616,2949.5,2949.4,1.515]
[1765890068666,5.64327616,2949.5,2949.4,1.51822396]
[1765890069064,10.19577616,2949.5,2948.4,1.515]
[1765890069267,1.4422,2949.0,2948.9,3.03322396]
[1765890069468,3.0307,2949.0,2948.9,3.03322396]
[1765890070164,3.7622,2949.0,2948.9,3.03322396]
[1765890070362,3.7622,2949.0,2948.9,2.28122396]
[1765890070558,3.7622,2949.0,2948.9,3.03322396]
[1765890071365,0.00508001,2949.2,2948.9,3.03322396]
[1765890071366,0.00508001,2949.2,2949.1,1.515]
[1765890071566,1.64508001,2949.2,2949.1,3.03322396]
[1765890071765,3.08728001,2949.2,2949.1,3.03322396]
[1765890072172,1.4422,2949.1,2949.0,0.4519]
[1765890072366,3.6622,2949.1,2949.0,2.73312396]
[1765890072673,3.6622,2949.1,2949.0,1.97012396]
[1765890073264,3.6622,2949.1,2949.0,3.48512396]
[1765890074870,2.9307,2949.1,2949.0,3.48512396]
[1765890075274,0.00508001,2949.2,2949.1,1.515]
[1765890075568,3.00578001,2949.2,2949.1,1.515]
[1765890076663,2.29508001,2949.2,2949.1,1.515]
[1765890077564,3.00578001,2949.2,2949.1,1.515]
[1765890078765,1.50508001,2949.2,2949.1,1.515]
[1765890078973,0.00508001,2949.2,2949.1,3.03322396]
[1765890079165,0.00361936,2949.5,2949.4,1.515]
[1765890079470,2.15361936,2949.5,2949.4,3.03322396]
[1765890080070,2.86431936,2949.5,2949.4,1.515]
[1765890080266,0.4383,2951.0,2949.6,1.515]
[1765890080470,1.4422,2950.8,2950.7,1.51822396]
[1765890080674,1.4422,2950.6,2950.5,1.51822396]
[1765890080871,3.9422,2950.6,2950.5,1.51822396]
[1765890081373,3.94587839,2950.6,2950.5,1.52210545]
[1765890081563,3.94587839,2950.6,2950.5,1.97400545]
[1765890082372,3.94587839,2950.6,2950.5,1.52210545]
[1765890083571,3.94587839,2950.6,2950.5,0.00388149]
[1765890086468,44.74587839,2950.6,2950.5,0.00388149]
[1765890086668,46.26410235,2950.6,2950.5,0.00388149]
[1765890087174,1.4383,2949.8,2949.7,1.51822396]
[1765890087375,4.1283,2949.8,2949.7,1.51822396]
[1765890087974,4.1283,2949.8,2949.7,1.52215129]
[1765890088873,4.1283,2949.8,2949.7,2.28515129]
[1765890089376,4.1283,2949.8,2949.7,3.03715129]
[1765890090073,4.1283,2949.8,2949.7,0.00392733]
[1765890099279,4.1352,2949.8,2949.7,1.49142733]
[1765890099470,3.4126,2949.8,2949.7,1.49142733]
[1765890099669,4.1352,2949.8,2949.7,1.49142733]
[1765890101181,3.4126,2949.8,2949.7,1.49142733]
[1765890101582,2.69,2949.8,2949.7,1.49142733]
[1765890102284,0.4342,2950.5,2949.7,1.49142733]
[1765890102475,2.7142,2950.5,2950.0,1.51729548]
[1765890102682,0.7377,2950.1,2950.0,3.00479548]
[1765890102874,2.9577,2950.1,2950.0,3.00479548]
[1765890103278,2.22,2950.1,2950.0,3.28229548]
[1765890103476,1.1719,2950.5,2950.4,1.4875]
[1765890103685,0.00367839,2950.6,2950.5,1.4875]
[1765890103982,3.76777839,2950.6,2950.5,1.4875]
[1765890104383,3.02137839,2950.6,2950.5,1.4875]
[1765890104582,2.28367839,2950.6,2950.5,1.9394]
[1765890104986,3.76777839,2950.6,2950.5,1.4875]
[1765890110486,1.9183,2950.5,2950.4,0.7436]
[1765890110687,4.2683,2950.5,2950.4,0.7436]
[1765890111191,4.2683,2950.5,2950.4,1.4875]
[1765890111490,4.2683,2950.5,2950.1,1.65702]
[1765890111491,1.4841,2950.2,2950.1,1.65702]
[1765890111684,4.0141,2950.2,2950.1,1.65702]
[1765890112390,3.2677,2950.2,2950.1,1.65702]
[1765890112892,4.0141,2950.2,2950.1,0.16952]
[1765890113087,4.0141,2950.2,2950.1,0.91312]
[1765890113487,4.0141,2950.2,2950.1,1.65702]
[1765890115494,3.2677,2950.2,2950.1,1.65702]
[1765890117098,4.0141,2950.2,2950.1,1.65702]
[1765890118399,3.2677,2950.2,2950.1,1.65702]
[1765890120491,4.0141,2950.2,2950.1,1.65702]
[1765890121295,1.9183,2950.0,2949.9,1.76413826]
[1765890121500,1.9183,2950.5,2950.4,1.4875]
[1765890121705,4.5283,2950.5,2950.4,1.4875]
[1765890122106,0.00367839,2950.6,2950.5,1.9394]
[1765890122300,2.43367839,2950.6,2950.5,1.9394]
[1765890122497,0.74137839,2950.6,2950.5,1.4875]
[1765890123095,3.80777839,2950.6,2950.5,0.7436]
[1765890123701,3.80777839,2950.6,2950.5,1.4875]
[1765890124804,3.80777839,2950.6,2950.5,0.7436]
[1765890125406,1.5144,2950.3,2950.2,2.45815796]
[1765890125606,4.1144,2950.3,2950.2,1.51604796]
[1765890125801,4.1144,2950.3,2950.2,2.28864796]
[1765890130305,4.1144,2950.3,2950.2,3.00984796]
[1765890131306,0.00367839,2950.6,2950.5,1.9457]
[1765890131606,2.32467839,2950.6,2950.5,3.00984796]
[1765890132311,3.06807839,2950.6,2950.5,3.00984796]
[1765890133505,3.06807839,2950.6,2950.5,2.28864796]
[1765890133707,1.55367839,2950.6,2950.5,3.00984796]
[1765890134212,2.32467839,2950.6,2950.5,3.00984796]
[1765890134407,3.06807839,2950.6,2950.5,3.00984796]
[1765890137904,3.06807839,2950.6,2950.5,2.28864796]
[1765890139215,1.5144,2950.4,2950.3,0.16951]
[1765890139518,3.7244,2950.4,2950.3,1.68555796]
[1765890139711,3.7244,2950.4,2950.3,3.17935796]
[1765890140616,2.981,2950.4,2950.3,3.17935796]
[1765890140918,3.7244,2950.4,2950.3,3.17935796]
[1765890142114,3.7244,2950.4,2950.3,2.28864796]
[1765890142312,3.7244,2950.4,2950.3,1.51604796]
[1765890143011,0.771,2950.1,2950.0,3.00984796]
[1765890143415,0.69,2950.1,2950.0,3.28694796]
[1765890144419,0.69,2950.1,2950.0,3.45646796]
[1765890145321,1.9504,2950.5,2950.4,0.7726]
[1765890145521,4.3504,2950.5,2950.4,0.7726]
[1765890145921,3.1304,2950.5,2950.4,0.7726]
[1765890146122,3.1304,2950.5,2950.4,1.4938]
[1765890146322,3.1304,2950.5,2950.4,0.7726]
[1765890146522,3.1304,2950.5,2950.4,1.4938]
[1765890146716,4.6104,2950.5,2950.4,1.4938]
[1765890147521,0.77467839,2950.6,2950.5,1.4938]
[1765890147724,3.74807839,2950.6,2950.5,1.4938]
[1765890148831,1.5144,2950.3,2950.2,3.00984796]
[1765890149126,4.2044,2950.3,2950.2,3.00984796]
[1765890150428,4.2044,2950.3,2950.2,2.28864796]
[1765890154125,4.2044,2950.3,2950.2,3.00984796]
[1765890154423,4.2044,2950.3,2950.2,2.28864796]
[1765890155426,4.2044,2950.3,2950.2,2.28876606]
[1765890156429,4.2044,2950.3,2950.2,1.51616606]
[1765890156930,4.2044,2950.3,2950.2,2.26496606]
[1765890160531,1.5007,2950.2,2950.1,0.91832]
[1765890160724,4.0107,2950.2,2950.1,0.16952]
[1765890161532,4.0107,2950.2,2950.1,1.68342]
[1765890161730,4.0107,2950.2,2950.1,0.91832]
[1765890162745,1.9295,2950.0,2949.9,1.78785462]
[1765890162933,4.6195,2950.0,2949.9,3.30402068]
[1765890163343,4.6195,2950.0,2949.9,2.53892068]
[1765890163636,4.6195,2950.0,2949.9,3.30402068]
[1765890166038,2.69,2950.0,2949.9,3.30402068]
[1765890166242,2.19,2950.0,2949.9,3.30402068]
[1765890167540,4.1195,2950.0,2949.9,2.53892068]
[1765890167742,4.1195,2950.0,2949.9,3.30402068]
[1765890168144,4.1195,2950.0,2949.9,1.78785462]
[1765890168439,4.1195,2950.0,2949.9,3.30402068]
[1765890170237,3.3679,2950.0,2949.9,3.30402068]
[1765890170546,1.7979,2950.0,2949.9,3.30402068]
[1765890170744,0.7491,2950.0,2949.9,3.30402068]
[1765890170933,0.9491,2950.0,2949.9,3.30402068]
[1765890171341,0.7491,2950.0,2949.9,3.30402068]
[1765890171646,3.2591,2950.0,2949.9,3.30402068]
[1765890172849,4.4395,2950.0,2949.9,3.30402068]
[1765890173445,3.2591,2950.0,2949.9,3.30402068]
[1765890177847,4.0107,2950.0,2949.9,3.30402068]
[1765890178054,4.4395,2950.0,2949.9,3.30402068]
[1765890178648,3.6879,2950.0,2949.9,3.30402068]
[1765890180558,4.4395,2950.0,2949.9,3.30402068]
[1765890180958,3.6879,2950.0,2949.9,3.30402068]
[1765890181258,2.51,2950.0,2949.9,3.30402068]
[1765890182153,3.2591,2950.0,2949.9,3.30402068]
[1765890185564,0.7491,2950.0,2949.9,3.30402068]
[1765890185766,3.2891,2950.0,2949.9,3.30402068]
[1765890187365,4.485,2950.0,2949.9,3.30402068]
[1765890188065,4.485,2950.0,2949.9,3.30425924]
[1765890189859,1.5006,2949.8,2949.7,0.00392733]
[1765890190064,5.61700462,2949.8,2949.7,0.00392733]
[1765890190261,46.41700462,2949.8,2949.7,2.733e-05]
[1765890190459,46.41700462,2949.8,2949.5,0.00508001]
[1765890190463,1.5006,2949.6,2949.5,0.00508001]
[1765890190660,5.64700462,2949.6,2949.5,0.00508001]
[1765890190958,4.1306,2949.6,2949.5,0.00508001]
[1765890191365,1.1807,2950.0,2949.9,1.4978]
[1765890191664,4.3486,2950.0,2949.9,2.3060931]
[1765890192364,1.9386,2950.0,2949.9,3.0168931]
[1765890192564,1.9507,2950.0,2949.9,3.0168931]
[1765890192766,1.5127,2950.0,2949.9,3.0168931]
[1765890192960,1.9366,2950.5,2950.4,0.787]
[1765890193157,4.2866,2950.5,2950.4,3.01420462]
[1765890194866,4.2866,2950.5,2950.4,2.30340462]
[1765890195268,2.786,2950.5,2950.2,1.51640462]
[1765890195470,1.5006,2950.3,2950.2,2.30340462]